[Event "URU-ch Semi Final 2020"]
[Site "Montevideo"]
[Date "2020.02.22"]
[Round "2.3"]
[White "Suarez, Pedro"]
[Black "Larrea, Manuel"]
[Result "0-1"]
[ECO "E91"]
[WhiteElo "2063"]
[BlackElo "2243"]
[Annotator "NA"]
[PlyCount "180"]
[EventDate "2020.02.22"]
[EventType "swiss"]
[EventCountry "URU"]
[SourceTitle "playchess.com"]
[Source "ChessBase"]
[SourceQuality "1"]
[TimeControl "5400+30"]

1. d4 {[%emt 0:00:00]} Nf6 {[%emt 0:00:00]} 2. c4 {[%emt 0:00:27]} g6 {[%emt 0:00:34]} 3. Nc3 {[%emt 0:01:21]} Bg7 {[%emt 0:00:07]} 4. e4 {[%emt 0:01:48]} d6 {[%emt 0:00:09]} 5. Be2 {[%emt 0:01:15]} O-O {[%emt 0:00:28]} 6. Nf3 {[%emt 0:01:58]} Bg4 {[%emt 0:00:14]} 7. h3 {[%emt 0:01:35]} Bxf3 {[%emt 0:00:49]} 8. Bxf3 {[%emt 0:00:46]} Nfd7 {[%emt 0:05:10]} 9. Be3 {[%emt 0:06:02]} e5 {[%emt 0:08:54] [#]} 10. Ne2 {[%emt 0:16:41]} (10. d5 $1 $16) 10... exd4 {[%emt 0:08:51]} 11. Nxd4 {[%emt 0:03:31]} Nb6 {[%emt 0:06:39]} 12. Rc1 {[%emt 0:03:15]} c5 {[%emt 0:01:41]} 13. Nb5 {[%emt 0:04:16]} Bxb2 {[%emt 0:01:57]} 14. Rc2 $17 {[%emt 0:01:10]} Be5 {[%emt 0:00:16]} 15. Qd3 {[%emt 0:02:58]} a6 {[%emt 0:08:09]} 16. Nc3 {[%emt 0:02:49]} Nc6 {[%emt 0:01:24]} 17. a3 {[%emt 0:00:48]} Nd4 {[%emt 0:01:53]} 18. Bxd4 {[%emt 0:01:02]} Bxd4 {[%emt 0:00:31]} 19. Ne2 {[%emt 0:00:13]} Be5 {[%emt 0:05:17]} 20. O-O {[%emt 0:00:58]} Nd7 {[%emt 0:05:27]} 21. Rd1 {[%emt 0:01:45]} Re8 {[%emt 0:02:15]} 22. g3 {[%emt 0:00:52]} Nb8 {[%emt 0:04:28]} 23. Bg2 {[%emt 0:02:57]} Nc6 {[%emt 0:00:11]} 24. f4 {[%emt 0:00:41]} Bd4+ {[%emt 0:00:13]} 25. Kh2 {[%emt 0:00:07]} Rb8 {[%emt 0:00:59]} 26. Qf3 {[%emt 0:01:03]} Qe7 {[%emt 0:01:54]} 27. Rcd2 {[%emt 0:10:01]} Qe6 {[%emt 0:02:41]} 28. Qd3 {[%emt 0:02:22]} Red8 {[%emt 0:01:48]} 29. a4 {[%emt 0:04:58]} h5 {[%emt 0:03:12]} 30. Rf1 {[%emt 0:03:15]} Bg7 {[%emt 0:04:28]} 31. f5 {[%emt 0:01:05]} Qe5 {[%emt 0:00:20]} 32. fxg6 {[%emt 0:00:18]} fxg6 {[%emt 0:00:12]} 33. Nf4 {[%emt 0:00:20]} Kh7 {[%emt 0:00:41]} 34. Qd5 {[%emt 0:05:06]} h4 {[%emt 0:02:57]} 35. gxh4 {[%emt 0:01:42]} Rf8 {[%emt 0:00:46]} 36. Rdf2 {[%emt 0:00:44]} Rxf4 {[%emt 0:12:24]} 37. Rxf4 {[%emt 0:00:39]} Rf8 {[%emt 0:00:05]} 38. Qxe5 {[%emt 0:02:17]} Bxe5 {[%emt 0:00:08]} 39. Kg3 {[%emt 0:00:08]} Kg7 {[%emt 0:01:07]} 40. R1f2 {[%emt 0:01:37]} Nd4 {[%emt 0:08:20]} 41. Kg4 {[%emt 0:00:32]} Bxf4 {[%emt 0:00:36]} 42. Rxf4 {[%emt 0:00:19]} Rb8 {[%emt 0:00:46]} 43. Bf1 {[%emt 0:00:54]} Nc6 {[%emt 0:01:21]} 44. Kg3 {[%emt 0:01:13]} Re8 {[%emt 0:00:21]} 45. Be2 {[%emt 0:00:37]} Re5 {[%emt 0:00:20]} 46. Kf2 {[%emt 0:00:42]} Re8 {[%emt 0:00:53]} 47. Ke3 {[%emt 0:00:55]} Nd4 {[%emt 0:00:16]} 48. Bg4 {[%emt 0:01:18]} Re7 {[%emt 0:00:17]} 49. Kd3 {[%emt 0:00:27]} Rc7 {[%emt 0:00:21]} 50. Rf1 {[%emt 0:01:04]} Nc6 {[%emt 0:00:19]} 51. Be6 {[%emt 0:00:23]} Nd4 {[%emt 0:01:37]} 52. Bd5 {[%emt 0:02:07]} Nc6 {[%emt 0:00:25]} 53. Bxc6 {[%emt 0:01:38]} Rxc6 {[%emt 0:00:01]} 54. a5 {[%emt 0:04:11]} Rc7 {[%emt 0:00:23]} 55. Ke3 {[%emt 0:00:22]} Rc6 {[%emt 0:00:39]} 56. Rf2 {[%emt 0:00:35]} b5 {[%emt 0:00:30]} 57. e5 {[%emt 0:01:32]} dxe5 {[%emt 0:00:33]} 58. Ke4 {[%emt 0:00:08]} bxc4 {[%emt 0:00:51]} 59. Kxe5 {[%emt 0:00:07]} Rc8 {[%emt 0:00:06]} 60. Kd5 {[%emt 0:00:41]} Rb8 {[%emt 0:00:06]} 61. Kxc5 {[%emt 0:01:01]} Rb5+ {[%emt 0:00:06]} 62. Kxc4 {[%emt 0:00:04]} Rxa5 {[%emt 0:00:02]} 63. Kb4 {[%emt 0:02:35]} Rf5 {[%emt 0:00:10]} 64. Rg2 {[%emt 0:00:23]} Kh6 {[%emt 0:01:32]} 65. Rg3 {[%emt 0:00:30]} Kh5 {[%emt 0:00:33]} 66. Ka4 {[%emt 0:00:23]} Rf6 {[%emt 0:00:25]} 67. Rg4 {[%emt 0:00:45]} Rf3 {[%emt 0:00:19]} 68. Ka5 {[%emt 0:01:00]} Rxh3 {[%emt 0:00:14]} 69. Rg5+ {[%emt 0:00:02]} Kh6 {[%emt 0:00:07]} 70. Rg4 {[%emt 0:00:06]} Ra3+ {[%emt 0:00:20]} 71. Kb6 {[%emt 0:00:33]} Ra1 {[%emt 0:00:34]} 72. Kb7 {[%emt 0:00:48]} Ra5 {[%emt 0:02:02]} 73. Kb6 {[%emt 0:00:17]} Rf5 {[%emt 0:00:20]} 74. Kxa6 {[%emt 0:00:04]} Kh5 {[%emt 0:00:02]} 75. Re4 {[%emt 0:00:11]} Rf3 {[%emt 0:00:10]} 76. Kb5 {[%emt 0:00:18]} Rh3 {[%emt 0:00:06]} 77. Kc5 {[%emt 0:00:16]} Rxh4 {[%emt 0:00:09]} 78. Re8 {[%emt 0:00:31]} g5 {[%emt 0:00:50]} 79. Kd5 {[%emt 0:00:11]} Rf4 {[%emt 0:00:10]} 80. Rg8 {[%emt 0:00:30]} Rf1 {[%emt 0:00:12]} 81. Ke4 {[%emt 0:00:08]} Kh4 {[%emt 0:00:22]} 82. Ke3 {[%emt 0:00:22]} g4 {[%emt 0:00:11]} 83. Ke2 {[%emt 0:00:17]} Rf7 {[%emt 0:00:05]} 84. Rg6 {[%emt 0:01:35]} Kh3 {[%emt 0:00:09]} 85. Rg8 {[%emt 0:00:26]} g3 {[%emt 0:00:07]} 86. Rg6 {[%emt 0:00:14]} Kg2 {[%emt 0:00:48]} 87. Ke3 {[%emt 0:00:57]} Re7+ {[%emt 0:00:43]} 88. Kf4 {[%emt 0:00:04]} Kf2 {[%emt 0:00:05]} 89. Kg4 {[%emt 0:01:03]} g2 {[%emt 0:00:41]} 90. Rf6+ {[%emt 0:00:09]} Ke2 {[%emt 0:00:18]} 0-1

[Event "URU-ch Semi Final 2020"]
[Site "Montevideo"]
[Date "2020.02.22"]
[Round "2.4"]
[White "Carbone, Diego"]
[Black "Pichuaga, Juan Pablo"]
[Result "1-0"]
[ECO "E68"]
[WhiteElo "2239"]
[BlackElo "2030"]
[Annotator "ChessBase"]
[PlyCount "255"]
[EventDate "2020.02.22"]
[EventType "swiss"]
[EventCountry "URU"]
[SourceTitle "playchess.com"]
[Source "ChessBase"]
[SourceQuality "1"]
[TimeControl "5400+30"]

1. d4 {[%emt 0:00:00]} Nf6 {[%emt 0:00:02]} 2. c4 {[%emt 0:00:00]} g6 {[%emt 0:00:21]} 3. g3 {[%emt 0:00:16]} Bg7 {[%emt 0:00:06]} 4. Bg2 {[%emt 0:00:05]} d6 {[%emt 0:00:08]} 5. Nc3 {[%emt 0:00:13]} O-O {[%emt 0:00:06]} 6. Nf3 {[%emt 0:00:03]} Nbd7 {[%emt 0:00:07]} 7. O-O {[%emt 0:00:07]} e5 {[%emt 0:00:26]} 8. e4 exd4 {[%emt 0:00:56]} 9. Nxd4 {[%emt 0:00:00]} Nc5 {[%emt 0:01:49]} 10. h3 {[%emt 0:00:00]} Re8 {[%emt 0:01:45]} 11. Re1 {[%emt 0:00:06]} a5 {[%emt 0:01:55]} 12. Qc2 {[%emt 0:01:16]} Ng4 {[%emt 0:06:45]} 13. Nb3 {[%emt 0:02:58]} Nxb3 {[%emt 0:03:26]} 14. axb3 {[%emt 0:00:45]} Ne5 {[%emt 0:00:32]} 15. Be3 {[%emt 0:00:33]} Nc6 {[%emt 0:10:03]} 16. Rad1 {[%emt 0:02:24]} Bd7 {[%emt 0:03:13]} 17. Qd2 {[%emt 0:11:22]} Qc8 {[%emt 0:03:34]} 18. Kh2 {[%emt 0:00:56]} Nb4 {[%emt 0:11:59]} 19. c5 {[%emt 0:25:49]} Be6 {[%emt 0:03:37]} 20. cxd6 {[%emt 0:00:08]} Rd8 {[%emt 0:04:40]} 21. Nb5 {[%emt 0:02:11]} cxd6 {[%emt 0:04:45]} 22. Bb6 {[%emt 0:19:20]} Bxb3 {[%emt 0:06:37]} 23. Bxd8 {[%emt 0:02:29]} Bxd1 {[%emt 0:03:03]} 24. Bxa5 {[%emt 0:00:41]} Rxa5 {[%emt 0:07:02]} 25. Qxb4 {[%emt 0:00:45]} Ra4 {[%emt 0:00:47]} 26. Qxd6 {[%emt 0:01:50]} Bb3 {[%emt 0:01:43]} 27. e5 {[%emt 0:07:34]} Bf8 {[%emt 0:02:24]} 28. Qf6 {[%emt 0:00:25]} Qe6 {[%emt 0:08:54]} 29. Qf3 {[%emt 0:03:47]} Rb4 {[%emt 0:00:36]} 30. Nc3 {[%emt 0:02:31]} Bc4 {[%emt 0:05:05]} 31. Ne4 {[%emt 0:00:01]} Rxb2 {[%emt 0:01:19]} 32. Qf4 {[%emt 0:05:04]} Be7 {[%emt 0:02:25]} 33. Nf6+ {[%emt 0:02:52]} Kg7 {[%emt 0:02:01]} 34. Ng4 {[%emt 0:01:35]} g5 {[%emt 0:00:57]} 35. Qd4 {[%emt 0:00:36]} Rb4 {[%emt 0:01:09]} 36. Qa1 {[%emt 0:02:49]} h5 {[%emt 0:02:09]} 37. Ne3 {[%emt 0:00:15]} Bc5 {[%emt 0:00:42]} 38. Qd1 {[%emt 0:02:08]} Bxe3 {[%emt 0:00:47]} 39. Rxe3 {[%emt 0:00:08]} Rb3 {[%emt 0:00:47]} 40. Qxh5 {[%emt 0:00:41]} Qg6 {[%emt 0:00:39]} 41. Qxg6+ {[%emt 0:00:26]} Kxg6 {[%emt 0:00:17]} 42. Be4+ {[%emt 0:01:14]} f5 {[%emt 0:00:21]} 43. exf6+ {[%emt 0:00:06]} Kxf6 {[%emt 0:00:06]} 44. Rxb3 {[%emt 0:00:09]} Bxb3 {[%emt 0:00:02]} 45. Bxb7 {[%emt 0:00:07]} Be6 {[%emt 0:00:16]} 46. Bf3 {[%emt 0:00:20]} Ke5 {[%emt 0:00:12]} 47. Kg2 {[%emt 0:03:26]} Bc4 {[%emt 0:00:19]} 48. Bg4 {[%emt 0:00:09]} Bd5+ {[%emt 0:00:24]} 49. Kf1 {[%emt 0:00:06]} Kd4 {[%emt 0:00:44]} 50. Ke2 {[%emt 0:00:16]} Bc4+ {[%emt 0:00:14]} 51. Kd2 {[%emt 0:00:01]} Bf1 {[%emt 0:00:49]} 52. Bd7 {[%emt 0:01:00]} Bc4 {[%emt 0:00:28]} 53. Ke1 {[%emt 0:01:08]} Ba6 {[%emt 0:00:27]} 54. Bg4 {[%emt 0:00:26]} Bb5 {[%emt 0:00:22]} 55. Be2 {[%emt 0:00:54]} Bd7 {[%emt 0:00:10]} 56. Bf1 {[%emt 0:00:09]} Be6 {[%emt 0:00:19]} 57. Kd2 {[%emt 0:00:47]} Bb3 {[%emt 0:00:51]} 58. Bg2 {[%emt 0:01:37]} Bc4 {[%emt 0:00:14]} 59. Bf3 {[%emt 0:01:05]} Bf1 {[%emt 0:00:14]} 60. h4 {[%emt 0:00:25]} gxh4 {[%emt 0:00:19]} 61. gxh4 {[%emt 0:00:02]} Ke5 {[%emt 0:00:43]} 62. Ke3 {[%emt 0:00:17]} Bh3 {[%emt 0:01:03]} 63. Bc6 {[%emt 0:00:50]} Bf5 {[%emt 0:00:56]} 64. Bb5 {[%emt 0:00:21]} Bh3 {[%emt 0:00:22]} 65. Bd3 {[%emt 0:00:23]} Bg2 {[%emt 0:00:42]} 66. h5 {[%emt 0:00:44]} Kf6 {[%emt 0:00:17]} 67. Kf4 {[%emt 0:00:32]} Kg7 {[%emt 0:00:21]} 68. Be4 {[%emt 0:00:35]} Bh3 {[%emt 0:00:32]} 69. Kg5 {[%emt 0:00:26]} Bf1 {[%emt 0:00:55]} 70. f4 {[%emt 0:00:35]} Bh3 {[%emt 0:00:15]} 71. h6+ {[%emt 0:01:07]} Kh8 {[%emt 0:00:29]} 72. Bf5 {[%emt 0:00:36]} Bf1 {[%emt 0:00:08]} 73. Kf6 {[%emt 0:00:20]} Be2 {[%emt 0:00:23]} 74. Ke5 {[%emt 0:00:18]} Bf1 {[%emt 0:00:19]} 75. Kd4 {[%emt 0:00:59]} Kg8 {[%emt 0:00:39]} 76. Ke3 {[%emt 0:00:29]} Kh8 {[%emt 0:00:08]} 77. Kf3 {[%emt 0:00:44]} Kg8 {[%emt 0:00:32]} 78. Kf2 {[%emt 0:00:27]} Bb5 {[%emt 0:00:27]} 79. Kg3 {[%emt 0:00:11]} Bf1 {[%emt 0:00:12]} 80. Kh4 {[%emt 0:00:38]} Kh8 {[%emt 0:00:16]} 81. Kh5 {[%emt 0:00:21]} Bg2 {[%emt 0:00:32]} 82. Kh4 {[%emt 0:00:44]} Bd5 {[%emt 0:00:40]} 83. Kg5 {[%emt 0:00:27]} Bc4 {[%emt 0:00:46]} 84. Be4 {[%emt 0:00:34]} Be6 {[%emt 0:00:14]} 85. Kf6 {[%emt 0:00:01]} Bh3 {[%emt 0:00:14]} 86. Bf5 {[%emt 0:00:08]} Bf1 {[%emt 0:00:07]} 87. Ke5 {[%emt 0:00:06]} Be2 {[%emt 0:00:37]} 88. Kd4 {[%emt 0:00:06]} Bd1 {[%emt 0:00:22]} 89. Ke5 {[%emt 0:00:31]} Be2 {[%emt 0:00:07]} 90. Bc2 {[%emt 0:00:37]} Bg4 {[%emt 0:00:30]} 91. Kf6 {[%emt 0:00:06]} Bh3 {[%emt 0:00:22]} 92. Kg5 {[%emt 0:01:43]} Kg8 {[%emt 0:00:47]} 93. Bf5 {[%emt 0:00:38]} Bf1 {[%emt 0:01:09]} 94. Be6+ {[%emt 0:00:08]} Kh8 {[%emt 0:00:18]} 95. Bf7 {[%emt 0:01:03]} Bh3 {[%emt 0:00:43]} 96. Bg6 {[%emt 0:00:07]} Kg8 {[%emt 0:00:22]} 97. Kf6 {[%emt 0:00:37]} Kh8 {[%emt 0:00:09]} 98. Ke5 {[%emt 0:00:46]} Kg8 {[%emt 0:01:45]} 99. Bf5 {[%emt 0:00:49]} Bf1 {[%emt 0:00:19]} 100. Kf6 {[%emt 0:00:33]} Kh8 {[%emt 0:00:52]} 101. Be4 {[%emt 0:00:00]} Bh3 {[%emt 0:01:14]} 102. Bd3 {[%emt 0:00:00]} Kg8 {[%emt 0:00:25]} 103. Ke7 {[%emt 0:00:00]} Kh8 {[%emt 0:00:24]} 104. Bc2 {[%emt 0:00:21]} Bg4 {[%emt 0:00:22]} 105. Kf7 {[%emt 0:01:49]} Bf5 {[%emt 0:01:04]} 106. Bb3 {[%emt 0:00:43]} Kh7 {[%emt 0:00:42]} 107. Kf6 {[%emt 0:00:02]} Bd3 {[%emt 0:00:27]} 108. Kg5 {[%emt 0:00:07]} Kh8 {[%emt 0:00:23]} 109. Bf7 {[%emt 0:00:11]} Kh7 {[%emt 0:00:38]} 110. Be6 {[%emt 0:00:35]} Kh8 {[%emt 0:00:27]} 111. Bg4 {[%emt 0:00:36]} Kg8 {[%emt 0:00:21]} 112. Bh5 {[%emt 0:00:18]} Kh7 {[%emt 0:00:13]} 113. Be8 {[%emt 0:00:10]} Bc2 {[%emt 0:02:01]} 114. Bd7 {[%emt 0:00:28]} Kh8 {[%emt 0:00:18]} 115. Bf5 {[%emt 0:00:19]} Ba4 {[%emt 0:00:21]} 116. Be4 {[%emt 0:01:09]} Bd7 {[%emt 0:00:11]} 117. Bf3 {[%emt 0:00:28]} Kh7 {[%emt 0:01:10]} 118. Bg4 {[%emt 0:00:02]} Bb5 {[%emt 0:00:31]} 119. f5 {[%emt 0:00:12]} Be8 {[%emt 0:00:40]} 120. f6 {[%emt 0:00:45]} Bf7 {[%emt 0:00:11]} 121. Bf5+ {[%emt 0:00:12]} Kh8 {[%emt 0:00:23]} 122. Bg6 {[%emt 0:00:34]} Bd5 {[%emt 0:00:37]} 123. Kf5 {[%emt 0:00:18]} Bc4 {[%emt 0:00:34]} 124. Ke5 {[%emt 0:00:07]} Bb3 {[%emt 0:00:31]} 125. Kd6 {[%emt 0:00:06]} Bc4 {[%emt 0:00:32]} 126. Ke7 {[%emt 0:00:10]} Bd5 {[%emt 0:00:17]} 127. Be8 {[%emt 0:01:44]} Bc4 {[%emt 0:00:46]} 128. Bd7 {[%emt 0:00:10]} 1-0

[Event "URU-ch Semi Final 2020"]
[Site "Montevideo"]
[Date "2020.02.22"]
[Round "2.5"]
[White "Carvalho, Guillermo"]
[Black "Durante, Aurelio"]
[Result "1-0"]
[ECO "D02"]
[WhiteElo "2187"]
[BlackElo "1955"]
[Annotator "NA"]
[PlyCount "43"]
[EventDate "2020.02.22"]
[EventType "swiss"]
[EventCountry "URU"]
[SourceTitle "playchess.com"]
[Source "ChessBase"]
[SourceQuality "1"]
[TimeControl "5400+30"]

1. Nf3 {[%emt 0:00:00]} d5 {[%emt 0:00:49]} 2. d4 {[%emt 0:00:18]} Nf6 {[%emt 0:00:45]} 3. g3 {[%emt 0:00:13]} c5 {[%emt 0:01:48]} 4. Bg2 {[%emt 0:00:30]} Nc6 {[%emt 0:00:12]} 5. O-O {[%emt 0:00:09]} e6 {[%emt 0:00:48]} 6. b3 {[%emt 0:10:40]} cxd4 {[%emt 0:10:40]} 7. Nxd4 {[%emt 0:00:28]} Bc5 {[%emt 0:01:38]} 8. Bb2 {[%emt 0:02:19]} O-O {[%emt 0:00:50]} 9. e3 {[%emt 0:04:34]} Re8 {[%emt 0:04:41]} 10. c4 {[%emt 0:03:42]} e5 {[%emt 0:10:37]} 11. Nxc6 {[%emt 0:01:33]} bxc6 {[%emt 0:00:23]} 12. Nc3 {[%emt 0:01:15]} Bg4 $11 {[%emt 0:08:39]} 13. Qc1 {[%emt 0:17:50]} Rc8 {[%emt 0:03:45]} 14. Na4 {[%emt 0:01:09]} Bd6 {[%emt 0:01:32]} 15. Qc2 {[%emt 0:09:09]} Qd7 {[%emt 0:03:59]} 16. f3 {[%emt 0:01:38]} Bh3 {[%emt 0:02:52]} 17. Rad1 {[%emt 0:02:07]} Bb8 {[%emt 0:05:42]} 18. Nc5 {[%emt 0:03:37]} Qe7 {[%emt 0:00:15]} 19. Bxh3 {[%emt 0:00:45]} Qxc5 {[%emt 0:00:17]} 20. Bxc8 {[%emt 0:00:25]} Qxe3+ {[%emt 0:00:58]} 21. Kg2 {[%emt 0:01:21]} Rxc8 {[%emt 0:03:07]} 22. cxd5 {[%emt 0:00:48]} 1-0

[Event "URU-ch Semi Final 2020"]
[Site "Montevideo"]
[Date "2020.02.22"]
[Round "2.6"]
[White "Dotta, Gian Franco"]
[Black "Vazquez, Facundo"]
[Result "0-1"]
[ECO "B23"]
[WhiteElo "2000"]
[BlackElo "2155"]
[Annotator "NA"]
[PlyCount "76"]
[EventDate "2020.02.22"]
[EventType "swiss"]
[EventCountry "URU"]
[SourceTitle "playchess.com"]
[Source "ChessBase"]
[SourceQuality "1"]
[TimeControl "5400+30"]

1. e4 {[%emt 0:09:34]} c5 {[%emt 0:00:00]} 2. Nc3 {[%emt 0:00:23]} Nc6 {[%emt 0:00:00]} 3. f4 {[%emt 0:00:08]} g6 {[%emt 0:01:40]} 4. Nf3 {[%emt 0:00:08]} Bg7 {[%emt 0:00:02]} 5. Bb5 {[%emt 0:00:11]} Nd4 {[%emt 0:02:13]} 6. O-O {[%emt 0:00:13]} e6 {[%emt 0:03:04]} 7. Kh1 {[%emt 0:18:38]} a6 {[%emt 0:03:14]} 8. Bd3 {[%emt 0:01:04]} Ne7 {[%emt 0:03:37]} 9. e5 {[%emt 0:03:25]} ({Better is} 9. Nxd4 $11 cxd4 10. Ne2) 9... Nxf3 {[%emt 0:03:29]} 10. Qxf3 {[%emt 0:01:56]} d5 {[%emt 0:01:11]} 11. exd6 {[%emt 0:05:58]} Qxd6 {[%emt 0:00:03]} 12. b3 {[%emt 0:03:42]} O-O $11 {[%emt 0:03:59]} 13. Bb2 {[%emt 0:02:09]} Qc7 {[%emt 0:05:07]} 14. Na4 {[%emt 0:04:57]} Bd7 {[%emt 0:05:27]} 15. Bxg7 {[%emt 0:03:19]} Kxg7 {[%emt 0:00:02]} 16. Nc3 {[%emt 0:03:36]} Rfd8 {[%emt 0:02:27]} 17. Rae1 {[%emt 0:05:54]} Bc6 {[%emt 0:02:24]} 18. Be4 {[%emt 0:02:48]} Nd5 {[%emt 0:04:53]} 19. Nxd5 {[%emt 0:01:10]} Bxd5 {[%emt 0:00:02]} 20. d3 {[%emt 0:02:15]} b5 {[%emt 0:03:27]} 21. Bxd5 {[%emt 0:04:21]} Rxd5 {[%emt 0:00:57]} 22. f5 {[%emt 0:07:21]} gxf5 {[%emt 0:05:49]} 23. Qh5 {[%emt 0:07:31]} Qd8 {[%emt 0:05:24]} 24. Rf3 {[%emt 0:00:22]} Qf6 {[%emt 0:00:45]} 25. Rh3 {[%emt 0:04:00]} h6 {[%emt 0:01:25]} 26. Rf3 {[%emt 0:03:15]} Kh7 {[%emt 0:04:08]} 27. Ref1 {[%emt 0:02:44]} Rg8 {[%emt 0:05:37]} 28. g4 {[%emt 0:01:12]} Rg5 {[%emt 0:03:58]} 29. Qh3 {[%emt 0:01:17]} Qg6 {[%emt 0:04:34]} 30. gxf5 {[%emt 0:00:33]} Rdxf5 {[%emt 0:00:07]} 31. Rxf5 {[%emt 0:00:34]} Rxf5 {[%emt 0:01:01]} 32. c4 {[%emt 0:00:19]} bxc4 {[%emt 0:02:35]} 33. bxc4 {[%emt 0:00:47]} Rxf1+ {[%emt 0:04:48]} 34. Qxf1 {[%emt 0:00:06]} Kg7 {[%emt 0:01:23]} 35. Qf3 {[%emt 0:00:34]} Qg5 {[%emt 0:02:18]} 36. a4 {[%emt 0:00:45]} a5 {[%emt 0:01:11]} 37. Qe4 {[%emt 0:00:33]} Qf5 {[%emt 0:01:44]} 38. Qe3 {[%emt 0:00:08]} Qf1+ {[%emt 0:00:35]} 0-1

[Event "URU-ch Semi Final 2020"]
[Site "Montevideo"]
[Date "2020.02.22"]
[Round "2.7"]
[White "Dominguez, Facundo"]
[Black "Salguero, Rafael"]
[Result "1-0"]
[ECO "C02"]
[WhiteElo "2135"]
[BlackElo "1906"]
[Annotator "ChessBase"]
[PlyCount "53"]
[EventDate "2020.02.22"]
[EventType "swiss"]
[EventCountry "URU"]
[SourceTitle "playchess.com"]
[Source "ChessBase"]
[SourceQuality "1"]
[TimeControl "5400+30"]

1. e4 {[%emt 0:05:35]} e6 {[%emt 0:00:03]} 2. d4 {[%emt 0:00:05]} d5 {[%emt 0:00:06]} 3. e5 {[%emt 0:00:19]} c5 {[%emt 0:00:11]} 4. c3 {[%emt 0:00:04]} Qb6 {[%emt 0:00:18]} 5. Nf3 {[%emt 0:00:08]} Nc6 {[%emt 0:00:28]} 6. a3 {[%emt 0:00:47]} Nh6 {[%emt 0:01:03]} 7. b4 {[%emt 0:00:07]} cxd4 {[%emt 0:00:08]} 8. cxd4 {[%emt 0:00:02]} Nf5 {[%emt 0:00:32]} 9. Be3 {[%emt 0:01:00]} f6 {[%emt 0:06:57]} 10. exf6 {[%emt 0:02:47]} gxf6 {[%emt 0:00:08]} 11. Nc3 {[%emt 0:08:28]} Nxe3 {[%emt 0:05:51]} 12. fxe3 {[%emt 0:00:00]} Bh6 {[%emt 0:00:23]} 13. Qd2 {[%emt 0:12:18]} O-O {[%emt 0:04:01]} 14. Bd3 {[%emt 0:00:42]} Kh8 {[%emt 0:03:34]} 15. Na4 {[%emt 0:08:59]} Qd8 {[%emt 0:01:16]} 16. O-O {[%emt 0:02:02]} e5 {[%emt 0:02:58]} 17. Bc2 {[%emt 0:01:43]} Bg4 {[%emt 0:08:40]} 18. Kh1 {[%emt 0:02:56]} Bxf3 {[%emt 0:00:51]} 19. Rxf3 {[%emt 0:00:02]} Nxd4 {[%emt 0:00:35]} 20. Rh3 {[%emt 0:01:31]} Nxc2 {[%emt 0:11:09]} 21. Qxc2 {[%emt 0:00:02]} Kg7 {[%emt 0:04:24]} 22. Qf5 {[%emt 0:00:34]} Qc8 {[%emt 0:02:47]} 23. Qh5 {[%emt 0:00:13]} Qxh3 {[%emt 0:01:49]} 24. Qxh3 {[%emt 0:00:08]} b6 {[%emt 0:01:02]} 25. Nc3 {[%emt 0:05:56]} Rfd8 {[%emt 0:00:29]} 26. Rd1 {[%emt 0:00:26]} Rac8 {[%emt 0:00:31]} 27. Nxd5 {[%emt 0:00:10]} 1-0

[Event "URU-ch Semi Final 2020"]
[Site "Montevideo"]
[Date "2020.02.22"]
[Round "2.8"]
[White "Izquierdo, Sebastian"]
[Black "Santos Izquierdo, Daniel"]
[Result "1/2-1/2"]
[ECO "E63"]
[WhiteElo "1950"]
[BlackElo "2206"]
[Annotator "ChessBase"]
[PlyCount "24"]
[EventDate "2020.02.22"]
[EventType "swiss"]
[EventCountry "URU"]
[SourceTitle "playchess.com"]
[Source "ChessBase"]
[SourceQuality "1"]
[TimeControl "5400+30"]

1. d4 {[%emt 0:17:38]} Nf6 {[%emt 0:00:41]} 2. Nf3 {[%emt 0:00:28]} g6 {[%emt 0:00:06]} 3. g3 {[%emt 0:00:06]} Bg7 {[%emt 0:00:08]} 4. Bg2 {[%emt 0:00:08]} O-O {[%emt 0:00:08]} 5. O-O {[%emt 0:00:10]} d6 {[%emt 0:00:07]} 6. c4 {[%emt 0:00:19]} Nc6 {[%emt 0:00:09]} 7. Nc3 {[%emt 0:02:35]} a6 {[%emt 0:00:21]} 8. d5 {[%emt 0:00:24]} Na5 {[%emt 0:00:05]} 9. Nd2 {[%emt 0:00:11]} c5 {[%emt 0:00:13]} 10. Qc2 {[%emt 0:00:23]} Rb8 {[%emt 0:00:10]} 11. b3 {[%emt 0:00:47]} b5 {[%emt 0:00:19]} 12. Rb1 {[%emt 0:02:08]} e5 {[%emt 0:01:07]} 1/2-1/2

[Event "URU-ch Semi Final 2020"]
[Site "Montevideo"]
[Date "2020.02.22"]
[Round "2.9"]
[White "Curi, Gabriel"]
[Black "Palacio, Enzo"]
[Result "1-0"]
[ECO "B92"]
[WhiteElo "2132"]
[BlackElo "1869"]
[Annotator "NA"]
[PlyCount "71"]
[EventDate "2020.02.22"]
[EventType "swiss"]
[EventCountry "URU"]
[SourceTitle "playchess.com"]
[Source "ChessBase"]
[SourceQuality "1"]
[TimeControl "5400+30"]

1. e4 {[%emt 0:00:00]} c5 {[%emt 0:00:00]} 2. Nf3 {[%emt 0:00:00]} d6 {[%emt 0:00:00]} 3. d4 {[%emt 0:00:00]} cxd4 {[%emt 0:00:00]} 4. Nxd4 {[%emt 0:00:00]} Nf6 {[%emt 0:00:00]} 5. Nc3 {[%emt 0:00:03]} a6 {[%emt 0:00:00]} 6. Be2 {[%emt 0:00:16]} e5 {[%emt 0:00:00]} 7. Nb3 {[%emt 0:00:05]} Be7 {[%emt 0:00:00]} 8. Be3 {[%emt 0:00:07]} Be6 {[%emt 0:00:00]} 9. O-O {[%emt 0:00:17]} O-O {[%emt 0:01:17]} 10. Qd2 $11 {[%emt 0:01:06]} Nbd7 {[%emt 0:04:26]} 11. a4 {[%emt 0:00:20]} Rc8 {[%emt 0:02:49]} 12. Rfd1 {[%emt 0:02:31]} Qc7 {[%emt 0:09:25]} 13. a5 {[%emt 0:05:45]} Rfd8 {[%emt 0:08:48]} 14. Bf3 {[%emt 0:07:48]} Nc5 {[%emt 0:13:58]} 15. Nc1 {[%emt 0:14:58]} Qc6 {[%emt 0:22:01]} 16. Nd5 {[%emt 0:05:51]} Bxd5 {[%emt 0:00:44]} 17. exd5 {[%emt 0:00:07]} Qc7 {[%emt 0:02:43]} 18. Qe1 {[%emt 0:05:42]} Rf8 {[%emt 0:01:50]} 19. c4 {[%emt 0:03:23]} Ne8 {[%emt 0:03:43]} 20. Be2 {[%emt 0:01:44]} f5 {[%emt 0:01:13]} 21. b4 {[%emt 0:00:09]} Nd7 {[%emt 0:00:17]} 22. f3 {[%emt 0:06:13]} Nef6 {[%emt 0:02:11]} 23. Nb3 {[%emt 0:07:21]} g5 {[%emt 0:11:52]} 24. Bf2 {[%emt 0:07:33]} g4 {[%emt 0:01:23]} 25. Rac1 {[%emt 0:02:19]} gxf3 {[%emt 0:03:19]} 26. gxf3 {[%emt 0:00:09]} b6 {[%emt 0:02:03]} 27. axb6 {[%emt 0:07:35]} Nxb6 {[%emt 0:00:03]} 28. Na5 {[%emt 0:00:45]} Kh8 {[%emt 0:00:44]} 29. Nc6 {[%emt 0:00:39]} Qb7 {[%emt 0:00:30]} 30. Nxe7 {[%emt 0:01:07]} Qxe7 {[%emt 0:00:03]} 31. Bxb6 {[%emt 0:00:07]} Rg8+ {[%emt 0:00:34]} 32. Kh1 {[%emt 0:00:26]} e4 {[%emt 0:01:07]} 33. Qh4 {[%emt 0:03:02]} Rg6 {[%emt 0:02:57]} 34. Bd4 {[%emt 0:01:32]} Rcg8 {[%emt 0:00:11]} 35. Rg1 {[%emt 0:00:55]} exf3 {[%emt 0:01:42]} 36. Bxf3 {[%emt 0:00:36]} 1-0